[Event "Grandiscacchi GM Festival 2022"]
[Site "Montebelluna"]
[Date "2022.05.17"]
[Round "2.1"]
[White "Rozen, Eytan"]
[Black "Pantsulaia, Levan"]
[Result "0-1"]
[ECO "A30"]
[WhiteElo "2425"]
[BlackElo "2587"]
[Annotator "TA"]
[PlyCount "124"]
[EventDate "2022.05.17"]
[EventType "swiss"]
[EventCountry "ITA"]
[SourceTitle "playchess.com"]
[Source "ChessBase"]
[SourceQuality "1"]
[TimeControl "40/3600+30:1800+30"]

{[%evp 15,124,37,45,34,52,49,81,81,76,49,95,84,139,46,46,16,13,13,50,0,66,27,32,20,80,81,76,75,80,-19,-27,-48,-34,-43,-44,-58,-52,-110,-70,-181,-188,-167,-137,-231,-218,-216,-218,-216,-157,-248,-152,-258,-153,-148,-61,-275,-279,-279,-268,-272,-195,-202,-206,-534,-504,-522,-458,-584,-580,-541,-408,-584,-580,-580,-576,-568,-553,-553,-553,-553,-553,-553,-553,-542,-531,-933,-906,-12798,-4133,-29976,-2052,-29977,-29978,-29975,-29976,-29985,-29986,-29992,-29984,-29983,-29975,-29983,-29984,-29983,-29983,-29983,-29983,-29983,-29984,-29983,-29985]} 1. Nf3 {[%emt 0:00:24]} c5 {[%emt 0:11:36]} 2. c4 {[%emt 0:01:13]} Nf6 {[%emt 0:01:02]} 3. Nc3 {[%emt 0:00:21]} e6 {[%emt 0:00:20]} 4. d4 {[%emt 0:00:22]} cxd4 {[%emt 0:00:45]} 5. Nxd4 {[%emt 0:00:03]} a6 {[%emt 0:00:07]} 6. g3 {[%emt 0:00:35]} Qc7 {[%emt 0:04:37]} 7. Bg2 {[%emt 0:04:20] 7.Bg2 scores better than 7.Qd3.} Be7 {[%emt 0:06:32]} 8. O-O {[%emt 0:00:55]} O-O {[%emt 0:00:06]} 9. e4 {[%emt 0:02:25] A30: Symmetrical English: Double Fianchetto and Hedgehog.} d6 {[%emt 0:03:05]} 10. Qe2 {[%emt 0:00:43]} Nbd7 {[%emt 0:08:16]} 11. f4 {[%emt 0:03:41] Prevents Ne5. White is better.} Re8 {[%emt 0:00:11]} 12. Be3 {[%emt 0:01:28]} (12. g4 $5 {[%cal Rg4g5]}) 12... Bf8 {[%emt 0:00:39]} (12... e5 $14) 13. Rac1 {[%emt 0:01:41]} g6 {[%emt 0:01:51]} (13... e5 $142) 14. Rfd1 {[%emt 0:08:02] [#]} (14. Nb3 $16) 14... e5 $146 {[%emt 0:01:42]} ({Predecessor:} 14... h6 15. b4 Qb8 16. Nb3 Bg7 17. a4 e5 18. a5 b6 19. axb6 Nxb6 20. h3 Nh5 {1-0 (65) Hansen,L (2540)-Antonio,R (2410) Lugano 1989}) 15. Nb3 {[%emt 0:03:12] next f5 is good for White.} exf4 {[%emt 0:05:51]} 16. gxf4 {[%emt 0:01:36]} Qb8 {[%emt 0:07:36]} 17. c5 {[%emt 0:09:40]} ({White should play} 17. Qf3 $14) 17... dxc5 {[%emt 0:03:40]} (17... Nxc5 $11 18. Nxc5 Bg4) 18. Bf3 {[%emt 0:03:21]} c4 {[%emt 0:06:51]} 19. Nd4 {[%emt 0:02:28]} ({Much weaker is} 19. Qxc4 Bh6 20. Rf1 (20. Ne2 $2 Ne5 $19) 20... Bxf4 21. Bxf4 Qxf4 $17) 19... Bh6 {[%emt 0:03:04]} (19... h5 $1 $11) 20. e5 $16 {[%emt 0:01:22]} Nxe5 {[%emt 0:00:01]} 21. fxe5 {[%emt 0:00:07]} Rxe5 {[%emt 0:00:16] [#]} 22. Bxh6 {[%emt 0:01:34]} Rxe2 $11 {[%emt 0:00:02]} 23. Ndxe2 {[%emt 0:02:08] White threatens Rd8+ and mate. Pair of Knights!} Qa7+ {[%emt 0:02:19]} 24. Rd4 {[%emt 0:01:24]} Bg4 {[%emt 0:00:15] Chess con chili.} 25. Rf1 {[%emt 0:04:30]} Bxf3 {[%emt 0:00:15]} (25... Rd8 $5 {[%cal Rb7b5]}) 26. Rxf3 {[%emt 0:00:02]} Ng4 {[%emt 0:00:08]} 27. Be3 {[%emt 0:01:55]} (27. Bg5 $1 $15) 27... Nxe3 $19 {[%emt 0:00:29]} 28. Rxe3 {[%emt 0:00:01]} b5 {[%emt 0:00:30]} 29. Re5 {[%emt 0:01:00]} (29. a3 $17 {might work better.}) 29... Rd8 $1 {[%emt 0:01:04]} 30. Red5 {[%emt 0:00:00]} Rxd5 {[%emt 0:00:00]} 31. Nxd5 {[%emt 0:00:00]} Kg7 {[%emt 0:00:00]} 32. Kg2 {[%emt 0:00:00]} (32. h4 $17) 32... Qc5 {[%emt 0:00:00]} 33. Kf3 {[%emt 0:00:00]} (33. h4 $17 {keeps fighting.}) 33... b4 {[%emt 0:00:00]} ({Black should try} 33... Qc8 $19 {Threatens to win with ...Qh3+.} 34. Ng3 Qh3) 34. h4 $17 {[%emt 0:00:00]} Qa5 {[%emt 0:00:00] Against a3} (34... a5 $17 {White must now prevent ...Qc6.} 35. Kf2 Qc6) 35. Kf2 $2 {[%emt 0:00:00] Now White is beyond hope.} (35. a3 $1 $15) 35... Qxa2 $19 {[%emt 0:00:00]} 36. Nxb4 {[%emt 0:00:00]} Qxb2 {[%emt 0:00:00]} 37. Rxc4 {[%emt 0:00:00]} a5 {[%emt 0:00:00][%cal Ba6a5,Ba5a4,Ba4a3][%mdl 32]} 38. Nd5 {[%emt 0:00:00]} Qb3 {[%emt 0:00:00]} 39. Rc5 {[%emt 0:00:00]} (39. Ne3 {was the crucial defense.}) 39... a4 {[%emt 0:00:00] [#] Hoping for ...a3.} 40. Nec3 {[%emt 0:00:00]} Qc2+ {[%emt 0:00:00]} 41. Kg3 {[%emt 0:16:31]} Qd3+ {[%emt 0:09:56]} 42. Kg2 {[%emt 0:00:25]} Qa6 {[%emt 0:03:03] Against Ra5} 43. Rb5 {[%emt 0:06:24]} (43. Ne3 {was forced.}) 43... a3 {[%emt 0:00:53]} 44. Rb1 {[%emt 0:00:02]} Qc4 {[%emt 0:01:10]} 45. Ra1 {[%emt 0:00:50]} Qg4+ {[%emt 0:00:29]} 46. Kf1 {[%emt 0:00:08]} Qf3+ {[%emt 0:00:27]} 47. Kg1 {[%emt 0:00:02]} Qg3+ {[%emt 0:00:07]} 48. Kf1 {[%emt 0:00:05]} Qxh4 {[%emt 0:00:06]} 49. Rxa3 {[%emt 0:00:13]} h5 {[%emt 0:00:16][%cal Bh7h5,Bh5h4,Bh4h3][%mdl 32]} 50. Kg2 {[%emt 0:02:23]} Qg5+ {[%emt 0:01:23]} 51. Kh2 {[%emt 0:00:17]} h4 {[%emt 0:02:10] ( -> ...Qg3+)} 52. Ra2 {[%emt 0:00:17]} Qg3+ {[%emt 0:00:05]} 53. Kh1 {[%emt 0:00:02]} h3 {[%emt 0:00:51] Black mates.} 54. Re2 {[%emt 0:01:42]} f5 {[%emt 0:02:16][%cal Bf7f5,Bf5f4][%mdl 32]} 55. Ne3 {[%emt 0:00:30]} f4 {[%emt 0:01:19]} ({Not} 55... h2 56. Nxf5+ gxf5 57. Rg2 $11) 56. Ned1 {[%emt 0:00:05]} g5 {[%emt 0:00:42][%cal Bg6g5,Bg5g4][%mdl 32]} 57. Rf2 {[%emt 0:00:29]} g4 {[%emt 0:04:49]} 58. Ne2 {[%emt 0:00:05]} Qd3 {[%emt 0:01:37]} 59. Nxf4 {[%emt 0:00:02]} Qxd1+ {[%emt 0:00:12]} 60. Kh2 {[%emt 0:00:02]} Kh6 {[%emt 0:04:36]} 61. Nxh3 {[%emt 0:00:37]} Qb3 {[%emt 0:00:44]} 62. Rf6+ {[%emt 0:00:37]} Kg7 {[%emt 0:00:05] Weighted Error Value: White=0.71/Black=0.15 (very precise)} 0-1

[Event "Grandiscacchi GM Festival 2022"]
[Site "Montebelluna"]
[Date "2022.05.17"]
[Round "2.2"]
[White "Loiseau, Quentin"]
[Black "Fishchuk, Vladyslav"]
[Result "1-0"]
[ECO "E04"]
[WhiteElo "2445"]
[BlackElo "2102"]
[Annotator "TA"]
[PlyCount "125"]
[EventDate "2022.05.17"]
[EventType "swiss"]
[EventCountry "ITA"]
[SourceTitle "playchess.com"]
[Source "ChessBase"]
[SourceQuality "1"]
[TimeControl "40/3600+30:1800+30"]

{[%evp 20,125,20,20,17,22,42,35,36,42,33,19,37,34,29,41,61,58,51,62,56,59,77,78,84,75,81,82,84,85,89,89,100,89,89,85,95,95,95,78,84,84,84,85,103,97,115,106,97,96,96,95,96,89,96,89,98,96,156,165,189,187,247,175,162,137,176,176,174,166,146,106,377,350,446,432,470,363,319,176,586,552,527,517,486,202,161,0,0,0,1392,721,3969,2131,29980,29981,29981,29982,29984,29977,29977,29978,29985,29986,29986,29987,29991,29992]} 1. d4 {[%emt 0:00:29]} Nf6 {[%emt 0:00:28]} 2. c4 {[%emt 0:00:12]} e6 {[%emt 0:00:22]} 3. g3 {[%emt 0:00:10]} d5 {[%emt 0:00:04]} 4. Bg2 {[%emt 0:00:21]} dxc4 {[%emt 0:00:07]} 5. Nf3 {[%emt 0:00:23]} c5 {[%emt 0:00:12]} 6. O-O {[%emt 0:05:29]} Nc6 {[%emt 0:00:05]} 7. dxc5 {[%emt 0:00:23]} Qxd1 {[%emt 0:00:21]} 8. Rxd1 {[%emt 0:00:02]} Bxc5 {[%emt 0:00:09]} 9. Nbd2 {[%emt 0:00:14]} c3 {[%emt 0:00:07]} 10. bxc3 {[%emt 0:00:10][%cal Bb2c3,Bc3c4,Bc4c5][%mdl 32]} O-O {[%emt 0:00:08]} 11. Nb3 {[%emt 0:00:58]} Be7 {[%emt 0:00:08] E04: Open Catalan: 5 Nf3.} 12. Bb2 {[%emt 0:04:26]} e5 {[%emt 0:14:04]} 13. c4 {[%emt 0:04:20]} e4 {[%emt 0:09:26] White is slightly better.} 14. Nfd4 {[%emt 0:06:54]} Nxd4 {[%emt 0:03:10]} 15. Bxd4 {[%emt 0:07:46] [#]} Be6 $146 {[%emt 0:03:31]} ({Predecessor:} 15... Bg4 16. Rd2 Rac8 17. Rc2 b6 18. e3 Rfe8 19. c5 bxc5 20. Nxc5 Nd7 21. Rac1 Nxc5 22. Bxc5 Rxc5 23. Rxc5 Bxc5 24. Rxc5 {½-½ (55) Matlakov,M (2691)-Lu,S (2614) Moscow 2016}) 16. Rac1 {[%emt 0:00:47][%cal Ba1c1,Bc1d1,Bd1d5][%mdl 32]} Rac8 {[%emt 0:03:07]} 17. c5 {[%emt 0:01:16]} Rfd8 {[%emt 0:02:48]} 18. Bxf6 {[%emt 0:02:21]} (18. e3 {with more complications.} Rc7 19. Rd2 h5 20. h4) 18... Rxd1+ {[%emt 0:00:09]} 19. Rxd1 {[%emt 0:00:01]} Bxf6 {[%emt 0:00:48]} 20. Bxe4 {[%emt 0:00:08]} Bxb3 {[%emt 0:03:07]} 21. axb3 {[%emt 0:00:06]} Rxc5 {[%emt 0:02:51]} 22. Bxb7 $14 {[%emt 0:00:52][%mdl 4096] Endgame KRB-KRB} Rc7 {[%emt 0:00:33]} 23. Ba6 {[%emt 0:00:55]} Be7 {[%emt 0:00:26]} 24. Rd5 {[%emt 0:01:09]} Kf8 {[%emt 0:01:48]} 25. Kg2 {[%emt 0:02:38]} Bc5 {[%emt 0:00:21]} 26. Bc4 {[%emt 0:00:54]} Ke7 {[%emt 0:01:46]} 27. Re5+ {[%emt 0:01:40]} Kd6 {[%emt 0:00:54]} 28. Rh5 {[%emt 0:01:21]} h6 {[%emt 0:00:11]} 29. e3 {[%emt 0:01:33]} Bb6 {[%emt 0:01:36]} 30. Rd5+ {[%emt 0:00:00]} Ke7 {[%emt 0:00:00]} 31. Re5+ {[%emt 0:00:00]} Kd6 {[%emt 0:00:00]} 32. Re8 {[%emt 0:00:00]} Kc5 {[%emt 0:00:00]} 33. Kf3 {[%emt 0:00:00] White is more active.} Kb4 {[%emt 0:00:00]} 34. Rb8 {[%emt 0:00:00]} Kc3 {[%emt 0:00:00]} 35. h4 {[%emt 0:00:00]} Rd7 {[%emt 0:00:00]} 36. h5 {[%emt 0:00:00]} f6 {[%emt 0:00:00]} 37. Kg4 {[%emt 0:00:00]} Kd2 {[%emt 0:00:00]} 38. Re8 {[%emt 0:00:00]} Ke1 {[%emt 0:00:00] [#]} ({Black should play} 38... Rc7 39. Rg8 Kc3) 39. f4 $1 $16 {[%emt 0:00:00][%cal Bf2f4,Bf4e5,Be5e6][%mdl 32]} Kf2 {[%emt 0:00:00]} 40. e4 {[%emt 0:00:00]} Be3 {[%emt 0:00:00]} (40... Bc5 $142 41. Rc8 Bd6) 41. Rg8 {[%emt 0:23:31]} Re7 {[%emt 0:19:47]} 42. Bd5 {[%emt 0:00:39]} Rc7 {[%emt 0:00:50]} 43. e5 {[%emt 0:00:51]} fxe5 {[%emt 0:00:35]} 44. fxe5 {[%emt 0:00:03] Rf8+ is the strong threat.} Bg5 {[%emt 0:01:00]} 45. Bc4 {[%emt 0:04:40]} Re7 $2 {[%emt 0:01:16][%mdl 8192]} (45... a5 $16 {was worth a try.}) 46. e6 $18 {[%emt 0:00:25]} Ke3 {[%emt 0:02:46]} 47. Kf5 {[%emt 0:00:56]} Kd4 {[%emt 0:01:03]} 48. Rc8 {[%emt 0:01:31] Inhibits Rc7.} Bf6 {[%emt 0:01:13]} 49. Rf8 {[%emt 0:04:16]} (49. Kg6 $142) 49... Bg5 $2 {[%emt 0:00:21]} (49... Kc5 50. Rd8 Rc7 51. Rd5+ Kc6) 50. Kg6 {[%emt 0:00:08] [#] Hoping for Rf7.} Ke5 {[%emt 0:02:34]} 51. Rf5+ {[%emt 0:00:14]} Kd6 {[%emt 0:00:09]} 52. Rd5+ {[%emt 0:00:07]} (52. Rf7 $142 Rc7 53. Kxg7) 52... Kc6 {[%emt 0:00:34]} 53. Rxg5 $2 {[%emt 0:00:42]} (53. Rd1 $18) 53... hxg5 $11 {[%emt 0:00:13]} 54. Kxg5 $18 {[%emt 0:00:02] KR-KB} Kc7 $2 {[%emt 0:01:56][%mdl 8192]} (54... Kd6 $11) 55. Kg6 {[%emt 0:00:43] Black must now prevent g4.} Kd8 {[%emt 0:00:37]} 56. g4 {[%emt 0:00:34][%cal Bg3g4,Bg4g5,Bg5h6][%mdl 32] g5 would kill now.} Ke8 {[%emt 0:00:20]} 57. g5 {[%emt 0:00:04] White mates.} Kf8 {[%emt 0:00:22]} 58. h6 {[%emt 0:04:41]} Kg8 {[%emt 0:00:17]} 59. Bd5 {[%emt 0:00:55]} a5 {[%emt 0:00:50]} 60. Bc4 {[%emt 0:00:22]} a4 {[%emt 0:04:06]} 61. bxa4 {[%emt 0:00:41]} gxh6 {[%emt 0:01:50]} 62. gxh6 {[%emt 0:00:12]} Rg7+ {[%emt 0:00:13]} 63. Kf6 {[%emt 0:00:05] Weighted Error Value: White=0.20 (precise) /Black=0.40} 1-0

[Event "Grandiscacchi GM Festival 2022"]
[Site "Montebelluna"]
[Date "2022.05.17"]
[Round "2.4"]
[White "Martinovici, Ilia"]
[Black "Shahil Dey"]
[Result "1-0"]
[ECO "D45"]
[WhiteElo "2408"]
[BlackElo "2369"]
[Annotator "TA"]
[PlyCount "91"]
[EventDate "2022.05.17"]
[EventType "swiss"]
[EventCountry "ITA"]
[SourceTitle "playchess.com"]
[Source "ChessBase"]
[SourceQuality "1"]
[TimeControl "40/3600+30:1800+30"]

{[%evp 14,91,0,0,0,1,106,114,96,116,127,127,132,133,130,130,138,120,130,107,130,125,147,134,153,133,197,217,291,277,325,235,340,360,425,406,406,388,413,410,364,384,508,516,504,493,542,542,547,479,539,525,523,535,508,395,453,438,481,385,390,385,556,521,843,818,798,766,1513,1485,1444,1443,1800,2647,3407,2509,1862,1701,29995,29996]} 1. d4 {[%emt 0:00:03]} d5 {[%emt 0:00:04]} 2. c4 {[%emt 0:00:06]} c6 {[%emt 0:00:04]} 3. Nf3 {[%emt 0:00:05]} Nf6 {[%emt 0:00:06]} 4. Nc3 {[%emt 0:00:04]} e6 {[%emt 0:00:06]} 5. e3 {[%emt 0:00:05]} Nbd7 {[%emt 0:00:05]} 6. b3 {[%emt 0:00:05]} Bb4 {[%emt 0:00:13]} 7. Bd2 {[%emt 0:00:06]} O-O {[%emt 0:00:08]} 8. Bd3 {[%emt 0:00:06]} b6 {[%emt 0:00:44] D45: Semi-Slav: 5 e3.} 9. O-O {[%emt 0:00:23][%cal Oc3d5]} Bb7 {[%emt 0:00:24] [#]} (9... dxc4 $11 {remains equal.} 10. bxc4 Bb7) 10. Nxd5 $1 $16 {[%emt 0:05:13][%mdl 512] White is more active.} Bxd2 {[%emt 0:05:15] White is better.} 11. Nxf6+ {[%emt 0:00:06]} Qxf6 {[%emt 0:00:08] [#]} 12. Nxd2 $146 {[%emt 0:00:48]} ({Predecessor:} 12. Qxd2 c5 13. Be2 Rad8 14. Rfd1 e5 15. dxc5 e4 16. Ne1 Ne5 17. Qb4 Qe7 18. Rxd8 Rxd8 {½-½ (38) Stojanovic,M (2566)-Baramidze,D (2615) Zuerich 2012}) 12... c5 {[%emt 0:01:15]} 13. Be4 {[%emt 0:00:41]} Bxe4 {[%emt 0:00:15]} 14. Nxe4 {[%emt 0:00:05]} Qg6 {[%emt 0:00:11]} 15. Ng3 {[%emt 0:01:00]} Rad8 {[%emt 0:01:01]} 16. Qb1 {[%emt 0:00:56]} f5 {[%emt 0:00:57]} 17. Rd1 {[%emt 0:00:59]} Qf7 {[%emt 0:14:28]} 18. dxc5 {[%emt 0:07:45]} bxc5 {[%emt 0:04:32]} 19. Qd3 {[%emt 0:03:56]} h5 {[%emt 0:00:35]} (19... Qe7 $16 20. Qd6 Kf7) 20. Qd6 $18 {[%emt 0:10:35]} Kh8 {[%emt 0:06:52]} 21. h4 {[%emt 0:02:32]} e5 {[%emt 0:02:00]} 22. e4 {[%emt 0:14:15]} fxe4 {[%emt 0:05:56]} (22... f4 $142) 23. Nxe4 {[%emt 0:00:10]} Qf5 {[%emt 0:02:13]} 24. f3 {[%emt 0:01:15]} Nf6 {[%emt 0:00:43]} 25. Qxd8 {[%emt 0:00:19]} Rxd8 {[%emt 0:00:10]} 26. Rxd8+ {[%emt 0:00:04]} Kh7 {[%emt 0:00:11]} 27. Re1 {[%emt 0:01:38]} ({Much less strong is} 27. Nxc5 e4 28. Nxe4 Nxe4 29. fxe4 Qxe4 $18) 27... Qf4 {[%emt 0:00:32]} 28. g3 {[%emt 0:01:55]} Qf5 {[%emt 0:00:57] [#] aiming for ...Nxe4.} 29. Kg2 {[%emt 0:00:07]} Kg6 {[%emt 0:01:58]} 30. Rd2 {[%emt 0:00:00]} Qc8 {[%emt 0:00:00]} 31. Ng5 {[%emt 0:00:00]} Qb8 {[%emt 0:00:00]} 32. Rde2 {[%emt 0:00:00]} Nd7 {[%emt 0:00:00]} 33. Rd1 {[%emt 0:00:00]} Nf6 {[%emt 0:00:00]} 34. Ne4 {[%emt 0:00:00]} Qc7 {[%emt 0:00:00]} 35. Rd6 {[%emt 0:00:00]} Kf5 {[%emt 0:00:00]} 36. Rd3 {[%emt 0:00:00]} ({Less strong is} 36. Kh3 a5 37. Kg2 a4 $18) 36... Kg6 {[%emt 0:00:00]} 37. Ng5 {[%emt 0:00:00]} Qb8 {[%emt 0:00:00]} (37... Kf5 $142 38. Kh3 a5) 38. Ne6 {[%emt 0:00:00]} e4 {[%emt 0:00:00]} 39. fxe4 {[%emt 0:00:00][%cal Bf3e4,Be4e5][%mdl 32]} Qe5 {[%emt 0:00:00]} 40. Ng5 {[%emt 0:00:00] Threatens to win with Red2.} Ng4 {[%emt 0:03:29]} 41. Rd5 {[%emt 0:07:54]} Qe7 {[%emt 0:34:37]} 42. e5 {[%emt 0:00:22]} a5 {[%emt 0:05:30]} 43. Rd6+ {[%emt 0:03:11]} Kf5 {[%emt 0:00:12]} 44. Re1 {[%emt 0:02:02] Threatening mate with Rf1+.} Qb7+ {[%emt 0:01:35]} 45. Kg1 {[%emt 0:01:11]} Qb4 {[%emt 0:11:10]} 46. Rf1+ {[%emt 0:00:25] White took control after the opening.  Weighted Error Value: White=0.08 (flawless) /Black=0.37} 1-0

[Event "Grandiscacchi GM Festival 2022"]
[Site "Montebelluna"]
[Date "2022.05.17"]
[Round "3.1"]
[White "Safarli, Eltaj"]
[Black "Jobava, Baadur"]
[Result "1/2-1/2"]
[ECO "C43"]
[WhiteElo "2600"]
[BlackElo "2600"]
[Annotator "TA"]
[PlyCount "34"]
[EventDate "2022.05.17"]
[EventType "swiss"]
[EventCountry "ITA"]
[SourceTitle "playchess.com"]
[Source "ChessBase"]
[SourceQuality "1"]
[TimeControl "40/3600+30:1800+30"]

{[%evp 9,21,17,11,11,10,20,16,27,25,10,14,11,20,2]} 1. e4 {[%emt 0:01:37]} e5 {[%emt 0:00:25]} 2. Nf3 {[%emt 0:00:05]} Nf6 {[%emt 0:00:03]} 3. d4 {[%emt 0:00:03]} d5 {[%emt 0:00:03]} 4. dxe5 {[%emt 0:00:12]} Nxe4 {[%emt 0:00:03]} 5. Nbd2 {[%emt 0:00:06]} Nxd2 {[%emt 0:00:04]} 6. Bxd2 {[%emt 0:00:05] C43: Petroff Defence: 3 d4.} Be7 {[%emt 0:00:02]} 7. Bd3 {[%emt 0:00:17]} c5 {[%emt 0:00:04]} 8. c3 {[%emt 0:00:23]} Nc6 {[%emt 0:00:04]} 9. O-O {[%emt 0:00:06]} Be6 {[%emt 0:00:02]} 10. Re1 {[%emt 0:00:09]} O-O {[%emt 0:00:05]} 11. h3 {[%emt 0:00:06] [#] A rather calm draw.  Weighted Error Value: White=0.01 (flawless) /Black=0.02 (flawless)} {Predecessor:} a6 $146 12. Bf4 b5 13. Bc2 Rc8 14. Qd3 g6 15. Qd2 b4 16. Bg5 Bxg5 17. Nxg5 Kg7 {1-0 (42) Ivic,V (2259)-Omorjan,D (2233) Kragujevac 2016} 1/2-1/2

[Event "Grandiscacchi GM Festival 2022"]
[Site "Montebelluna"]
[Date "2022.05.17"]
[Round "3.2"]
[White "Martinovici, Ilia"]
[Black "Loiseau, Quentin"]
[Result "0-1"]
[ECO "D24"]
[WhiteElo "2408"]
[BlackElo "2445"]
[Annotator "TA"]
[PlyCount "80"]
[EventDate "2022.05.17"]
[EventType "swiss"]
[EventCountry "ITA"]
[SourceTitle "playchess.com"]
[Source "ChessBase"]
[SourceQuality "1"]
[TimeControl "40/3600+30:1800+30"]

{[%evp 10,80,0,0,0,0,-7,-12,0,0,0,3,13,-26,-3,-39,0,0,-4,-12,-7,-102,-98,-115,-114,-115,-84,-229,-220,-208,-222,-220,-195,-195,-195,-263,-263,-263,-263,-263,-256,-599,-583,-591,-532,-599,-599,-589,-532,-832,-832,-654,-654,-1476,-654,-1527,-1494,-1270,-1059,-854,-708,-29977,-29978,-29978,-29978,-29979,-29980,-29981,-29982,-29982,-29983,-29983,-29981]} 1. d4 {[%emt 0:00:03]} d5 {[%emt 0:00:16]} 2. c4 {[%emt 0:00:05]} dxc4 {[%emt 0:00:11]} 3. Nf3 {[%emt 0:00:13]} Nf6 {[%emt 0:00:07]} 4. Nc3 {[%emt 0:00:20]} a6 {[%emt 0:01:57]} 5. a4 {[%emt 0:00:25]} e6 {[%emt 0:00:06]} 6. e4 {[%emt 0:01:08]} Bb4 {[%emt 0:00:59] D24: Queen's Gambit Accepted: 3 Nf3 Nf6 4 Nc3.} 7. e5 {[%emt 0:03:49]} Nd5 {[%emt 0:01:50]} 8. Bd2 {[%emt 0:00:17]} b5 {[%emt 0:12:27] The position is equal.} 9. axb5 {[%emt 0:00:47]} Nb6 {[%emt 0:00:20]} 10. bxa6 {[%emt 0:05:46]} Nc6 {[%emt 0:06:22]} 11. Na4 {[%emt 0:19:27] And now Bxb4 would win.} Bxd2+ {[%emt 0:03:58]} 12. Nxd2 {[%emt 0:03:04] [#]} (12. Qxd2 {keeps more tension.} Bxa6 13. Nxb6 cxb6 14. b3) 12... Nxa4 $146 {[%emt 0:02:01]} ({Predecessor:} 12... O-O 13. Nxb6 cxb6 14. Bxc4 Qxd4 15. O-O Nxe5 16. Be2 Qxb2 17. Qc1 Qd4 18. Rd1 b5 19. Nf3 Qe4 20. Bxb5 Nxf3+ 21. gxf3 Qxf3 22. Qc4 e5 23. Bc6 Bxa6 24. Bxf3 {1-0 (24) Kuligin,E (2329)-Ovetchkin,R (2534) Nizhnij Tagil 2007}) 13. Rxa4 {[%emt 0:00:13]} (13. Qxa4 Rxa6 14. Qd1 Rxa1 15. Qxa1 Qxd4 $17) 13... Qxd4 {[%emt 0:00:54]} 14. Bxc4 {[%emt 0:04:27]} (14. Rxc4 Qxe5+ 15. Qe2 Rxa6 $17) 14... O-O {[%emt 0:10:10] next ...Rd8 is good for Black.} 15. O-O {[%emt 0:04:42]} (15. Nf3 $11 Qe4+ 16. Qe2 (16. Be2 Nb4 $11) 16... Qb1+ 17. Qd1 Qe4+ 18. Qe2 (18. Be2 Nb4 $11) 18... Qb1+ 19. Qd1 Qe4+) 15... Rd8 $1 $17 {[%emt 0:01:57]} 16. Qf3 {[%emt 0:00:39]} Qxd2 {[%emt 0:00:24]} 17. Bb5 {[%emt 0:03:01]} ({But not} 17. Qxc6 $2 Bd7 18. Qxc7 Bxa4 $19) 17... Qxb2 {[%emt 0:05:17]} 18. Qxc6 {[%emt 0:07:49] Loses the game.} (18. Bxc6 $17 Bxa6 19. Re1 (19. Rfa1 Bb7 $17)) 18... Bd7 $19 {[%emt 0:00:05]} 19. Qxd7 {[%emt 0:00:04]} Rxd7 {[%emt 0:00:03]} 20. Bxd7 {[%emt 0:00:04] [#]} Qb6 $1 {[%emt 0:00:15]} ({Weaker is} 20... Qxe5 21. Bc6 Ra7 22. Bb7 $11) 21. Rfa1 {[%emt 0:00:17] [#]} c6 $1 {[%emt 0:00:19]} 22. Rc1 {[%emt 0:07:13]} (22. a7 {was necessary.} Qb7 23. Ra6 (23. Be8 $2 Kf8 $19) 23... Qxd7 24. Rb6) 22... Rxa6 {[%emt 0:00:44]} 23. Rxa6 {[%emt 0:00:08]} Qxa6 {[%emt 0:00:05]} 24. Bxc6 {[%emt 0:00:05][%mdl 4096] Endgame KQ-KRB} Qa5 {[%emt 0:01:11] Prevents Bb5.} 25. f4 $2 {[%emt 0:08:54]} (25. Bf3 g6 26. g3) 25... Qa3 {[%emt 0:02:38]} 26. Rd1 {[%emt 0:00:00] Rd8+ is the strong threat.} g5 {[%emt 0:00:05] Threatens to win with ...Qc5+.} 27. Kh1 {[%emt 0:00:00]} gxf4 {[%emt 0:00:19]} 28. Bf3 {[%emt 0:00:25]} Qe3 {[%emt 0:00:08]} 29. Rd8+ {[%emt 0:00:37]} Kg7 {[%emt 0:00:01][%cal Re3e1]} 30. h3 {[%emt 0:00:00]} Qxe5 {[%emt 0:00:00]} 31. Rd7 {[%emt 0:00:00]} Kg6 {[%emt 0:00:00]} (31... Qe1+ $142 32. Kh2 Kg6) 32. Rb7 {[%emt 0:00:00]} Qc5 {[%emt 0:00:00]} 33. Rb8 {[%emt 0:00:00]} f5 {[%emt 0:00:00]} 34. Re8 {[%emt 0:00:00]} e5 {[%emt 0:00:00] aiming for ...e4.} 35. Kh2 {[%emt 0:00:00]} e4 {[%emt 0:00:00] Black mates.} 36. Bxe4 {[%emt 0:00:00]} Kf7 {[%emt 0:00:00]} 37. Bc6 {[%emt 0:00:00]} Qxc6 {[%emt 0:00:00]} 38. Re1 {[%emt 0:00:00]} f3 {[%emt 0:00:00]} 39. Rf1 {[%emt 0:00:00]} Qd6+ {[%emt 0:00:00]} 40. Kg1 {[%emt 0:00:00]} Qc5+ {[%emt 0:00:00] Weighted Error Value: White=0.81/Black=0.25 (precise)} 0-1